[Event "*** MasterClass Titled Tuesday Blitz"]
[Site "Chess.com"]
[Date "2017.10.03"]
[Round "1"]
[White "Daniela_Movileanu"]
[Black "vanea_03"]
[Result "0-1"]
[WhiteElo "2096"]
[BlackElo "2460"]
[TimeControl "180+2"]
[EndTime "13:10:08 PDT"]
[Termination "vanea_03 won by resignation"]

1. e4 {[%clk 0:03:01.9]} 1... c6 {[%clk 0:03:00.4]} 2. d4 {[%clk 0:02:44.2]}
2... d5 {[%clk 0:03:02.3]} 3. Nd2 {[%clk 0:02:45.4]} 3... dxe4 {[%clk
0:03:03.6]} 4. Nxe4 {[%clk 0:02:47.3]} 4... Bf5 {[%clk 0:03:05.2]} 5. Ng3 {[%clk
0:02:47.9]} 5... Bg6 {[%clk 0:03:06.6]} 6. Nf3 {[%clk 0:02:48.7]} 6... Nf6
{[%clk 0:03:06.8]} 7. h4 {[%clk 0:02:49.6]} 7... Nh5 {[%clk 0:03:08]} 8. Nxh5
{[%clk 0:02:47.3]} 8... Bxh5 {[%clk 0:03:09]} 9. Be2 {[%clk 0:02:49.2]} 9... e6
{[%clk 0:03:09.8]} 10. Bf4 {[%clk 0:02:48.8]} 10... Bd6 {[%clk 0:03:06.4]} 11.
Ne5 {[%clk 0:02:46.9]} 11... Bxe2 {[%clk 0:03:06]} 12. Qxe2 {[%clk 0:02:48.8]}
12... Qe7 {[%clk 0:02:59.5]} 13. O-O-O {[%clk 0:02:48.6]} 13... Nd7 {[%clk
0:02:58.9]} 14. Bg3 {[%clk 0:02:33.3]} 14... Nf6 {[%clk 0:02:57.8]} 15. f4
{[%clk 0:02:24.9]} 15... h5 {[%clk 0:02:51.9]} 16. Rhf1 {[%clk 0:02:23.5]} 16...
g6 {[%clk 0:02:52.2]} 17. Kb1 {[%clk 0:02:16.5]} 17... O-O-O {[%clk 0:02:50.4]}
18. Nc4 {[%clk 0:02:13.7]} 18... Bc7 {[%clk 0:02:49.2]} 19. Qf3 {[%clk
0:02:10.1]} 19... Nd5 {[%clk 0:02:45.1]} 20. Rde1 {[%clk 0:02:02.7]} 20... Qf6
{[%clk 0:02:36.7]} 21. c3 {[%clk 0:02:01.7]} 21... Qf5+ {[%clk 0:02:36.9]} 22.
Ka1 {[%clk 0:02:01.8]} 22... Qg4 {[%clk 0:02:19.1]} 23. Ne5 {[%clk 0:01:58]}
23... Qxf3 {[%clk 0:02:15.9]} 24. Rxf3 {[%clk 0:01:59.9]} 24... Rhf8 {[%clk
0:02:15.8]} 25. Re2 {[%clk 0:01:44.2]} 25... Ne7 {[%clk 0:02:15.8]} 26. Bf2
{[%clk 0:01:40.8]} 26... Nf5 {[%clk 0:02:13.1]} 27. Re4 {[%clk 0:01:38.1]} 27...
Bxe5 {[%clk 0:02:07.9]} 28. fxe5 {[%clk 0:01:37.6]} 28... b6 {[%clk 0:02:04.2]}
29. b3 {[%clk 0:01:38.6]} 29... Kb7 {[%clk 0:02:05]} 30. g4 {[%clk 0:01:39.3]}
30... hxg4 {[%clk 0:02:04.9]} 31. Rxg4 {[%clk 0:01:41.2]} 31... Rh8 {[%clk
0:02:05.9]} 32. Kb2 {[%clk 0:01:40.1]} 32... Rd5 {[%clk 0:02:05.1]} 33. c4
{[%clk 0:01:39.5]} 33... Rdd8 {[%clk 0:02:05.2]} 34. Kc3 {[%clk 0:01:40.4]}
34... a5 {[%clk 0:02:00.1]} 35. a3 {[%clk 0:01:40.2]} 35... Kc7 {[%clk
0:01:44.2]} 36. Rff4 {[%clk 0:01:33.1]} 36... Rh5 {[%clk 0:01:38.8]} 37. Re4
{[%clk 0:01:20.1]} 37... Rdh8 {[%clk 0:01:36.2]} 38. b4 {[%clk 0:01:04.6]} 38...
axb4+ {[%clk 0:01:36.4]} 39. Kxb4 {[%clk 0:01:06.5]} 39... Ra8 {[%clk
0:01:34.8]} 40. a4 {[%clk 0:01:06.8]} 40... Rhh8 {[%clk 0:01:32]} 41. Re1 {[%clk
0:01:07.4]} 41... Rhb8 {[%clk 0:01:24]} 42. Rd1 {[%clk 0:01:08]} 42... c5+
{[%clk 0:01:20.2]} 43. dxc5 {[%clk 0:00:53.2]} 43... bxc5+ {[%clk 0:01:22.1]}
44. Kc3 {[%clk 0:00:54.3]} 44... Kc6 {[%clk 0:01:17.1]} 45. Rgg1 {[%clk
0:00:48.5]} 45... Rxa4 {[%clk 0:01:13.6]} 46. Ra1 {[%clk 0:00:48.4]} 46... Rba8
{[%clk 0:01:13.1]} 47. Rxa4 {[%clk 0:00:48]} 47... Rxa4 {[%clk 0:01:15]} 48. Rb1
{[%clk 0:00:48.9]} 48... Ra3+ {[%clk 0:01:15.1]} 49. Kb2 {[%clk 0:00:49.1]}
49... Rf3 {[%clk 0:01:14.6]} 50. Be1 {[%clk 0:00:47.1]} 50... Re3 {[%clk
0:01:05.5]} 51. Bc3 {[%clk 0:00:46.4]} 51... Re4 {[%clk 0:01:06.6]} 52. Kb3
{[%clk 0:00:43.9]} 52... Nxh4 {[%clk 0:01:05.1]} 53. Rh1 {[%clk 0:00:41.6]}
53... Nf3 {[%clk 0:01:03.2]} 54. Rh7 {[%clk 0:00:41.8]} 54... Rf4 {[%clk
0:00:55.5]} 55. Rh8 {[%clk 0:00:42.9]} 55... Rf5 {[%clk 0:00:54.7]} 56. Rc8+
{[%clk 0:00:42.7]} 56... Kb6 {[%clk 0:00:55.3]} 57. Rb8+ {[%clk 0:00:43.2]}
57... Kc7 {[%clk 0:00:56.3]} 58. Rb5 {[%clk 0:00:43.7]} 58... Kc6 {[%clk
0:00:55.1]} 59. Rb8 {[%clk 0:00:44.6]} 59... Nxe5 {[%clk 0:00:54.9]} 60. Rc8+
{[%clk 0:00:44]} 60... Kb6 {[%clk 0:00:56.1]} 61. Rb8+ {[%clk 0:00:42.7]} 61...
Kc7 {[%clk 0:00:56.2]} 62. Rb5 {[%clk 0:00:44.3]} 62... Nd7 {[%clk 0:00:55.9]}
63. Ba5+ {[%clk 0:00:44.6]} 63... Kd6 {[%clk 0:00:55.2]} 64. Bc3 {[%clk
0:00:42.1]} 64... Rf3 {[%clk 0:00:55.4]} 65. Ra5 {[%clk 0:00:42.7]} 65... e5
{[%clk 0:00:52.5]} 66. Kc2 {[%clk 0:00:43.9]} 66... g5 {[%clk 0:00:50.3]} 67.
Ra6+ {[%clk 0:00:44.2]} 67... Ke7 {[%clk 0:00:51.4]} 68. Kd2 {[%clk 0:00:43.4]}
68... g4 {[%clk 0:00:51.1]} 69. Ra7 {[%clk 0:00:43.6]} 69... Ke6 {[%clk
0:00:50.9]} 70. Ra6+ {[%clk 0:00:43.6]} 70... Kf5 {[%clk 0:00:50.7]} 71. Ra7
{[%clk 0:00:44.7]} 71... Nf6 {[%clk 0:00:47.7]} 72. Rxf7 {[%clk 0:00:44.7]}
72... Ke6 {[%clk 0:00:48.9]} 73. Rg7 {[%clk 0:00:44.2]} 73... Ne4+ {[%clk
0:00:49.8]} 0-1

[Event "*** MasterClass Titled Tuesday Blitz"]
[Site "Chess.com"]
[Date "2017.10.03"]
[Round "1"]
[White "Hanging_pointer"]
[Black "JSPrepz"]
[Result "0-1"]
[WhiteElo "2264"]
[BlackElo "2535"]
[TimeControl "180+2"]
[EndTime "13:10:24 PDT"]
[Termination "JSPrepz won by resignation"]

1. e4 {[%clk 0:03:01.9]} 1... e6 {[%clk 0:02:58.6]} 2. d4 {[%clk 0:03:02.4]}
2... d5 {[%clk 0:02:59.7]} 3. Nd2 {[%clk 0:03:03.5]} 3... c5 {[%clk 0:03:00.4]}
4. exd5 {[%clk 0:03:04.4]} 4... Qxd5 {[%clk 0:03:02.3]} 5. Ngf3 {[%clk
0:03:06.3]} 5... cxd4 {[%clk 0:03:03.7]} 6. Bc4 {[%clk 0:03:08]} 6... Qd6 {[%clk
0:03:05.3]} 7. O-O {[%clk 0:03:09.9]} 7... Nf6 {[%clk 0:03:06.6]} 8. Nb3 {[%clk
0:03:10.9]} 8... Nc6 {[%clk 0:03:08.2]} 9. Nbxd4 {[%clk 0:03:12.1]} 9... Nxd4
{[%clk 0:03:09.8]} 10. Nxd4 {[%clk 0:03:14]} 10... Be7 {[%clk 0:03:11]} 11. Re1
{[%clk 0:03:12.2]} 11... O-O {[%clk 0:03:11.9]} 12. Bb3 {[%clk 0:02:51.5]} 12...
Rd8 {[%clk 0:03:04.3]} 13. Be3 {[%clk 0:02:50.6]} 13... a6 {[%clk 0:02:59.5]}
14. Qf3 {[%clk 0:02:49.2]} 14... Nd5 {[%clk 0:02:56.1]} 15. Rad1 {[%clk
0:02:29.6]} 15... Nxe3 {[%clk 0:02:56.5]} 16. Rxe3 {[%clk 0:02:25.9]} 16... Bf6
{[%clk 0:02:42.1]} 17. Red3 {[%clk 0:02:26.1]} 17... Qc7 {[%clk 0:02:36]} 18. c3
{[%clk 0:02:17.5]} 18... Bd7 {[%clk 0:02:36.3]} 19. h3 {[%clk 0:02:08.2]} 19...
Rab8 {[%clk 0:02:30.3]} 20. Qe4 {[%clk 0:02:03]} 20... Qb6 {[%clk 0:02:23.6]}
21. R3d2 {[%clk 0:01:31.5]} 21... g6 {[%clk 0:02:19.7]} 22. Qf3 {[%clk
0:01:27.4]} 22... Bg7 {[%clk 0:02:10.8]} 23. h4 {[%clk 0:01:27.1]} 23... h5
{[%clk 0:02:11.1]} 24. Qe3 {[%clk 0:01:01.6]} 24... Qa5 {[%clk 0:01:49.9]} 25.
Nf3 {[%clk 0:00:36.7]} 25... Bc6 {[%clk 0:01:43.3]} 26. Ng5 {[%clk 0:00:37.4]}
26... Rxd2 {[%clk 0:01:33.5]} 27. Qxd2 {[%clk 0:00:35.9]} 27... Qf5 {[%clk
0:01:26.1]} 28. Qd6 {[%clk 0:00:33]} 28... Be5 {[%clk 0:01:24.7]} 29. Qe7 {[%clk
0:00:25.9]} 29... Re8 {[%clk 0:01:04.1]} 30. Qb4 {[%clk 0:00:26.8]} 30... a5
{[%clk 0:01:00.3]} 31. Qc4 {[%clk 0:00:26.7]} 31... Bf6 {[%clk 0:00:41.1]} 32.
Nh3 {[%clk 0:00:06.6]} 32... Kg7 {[%clk 0:00:35.8]} 33. Qe2 {[%clk 0:00:06.9]}
33... a4 {[%clk 0:00:31.7]} 34. Bc2 {[%clk 0:00:07.9]} 34... Qe5 {[%clk
0:00:33.4]} 35. Qxe5 {[%clk 0:00:07.1]} 35... Bxe5 {[%clk 0:00:35.3]} 36. g3
{[%clk 0:00:07.5]} 36... a3 {[%clk 0:00:35.2]} 37. bxa3 {[%clk 0:00:08.2]} 37...
Ra8 {[%clk 0:00:35.6]} 38. Bb3 {[%clk 0:00:08.4]} 38... Bxc3 {[%clk 0:00:34.8]}
39. Rc1 {[%clk 0:00:07.9]} 39... Bb2 {[%clk 0:00:34.6]} 40. Rd1 {[%clk
0:00:09.3]} 40... Bxa3 {[%clk 0:00:31.8]} 41. Nf4 {[%clk 0:00:10.6]} 41... Be7
{[%clk 0:00:32.8]} 42. Rc1 {[%clk 0:00:08.3]} 42... Kf6 {[%clk 0:00:33.6]} 43.
Nd3 {[%clk 0:00:09.6]} 43... Ba4 {[%clk 0:00:30.2]} 44. Bc4 {[%clk 0:00:08.5]}
44... b5 {[%clk 0:00:28.4]} 45. Bb3 {[%clk 0:00:08.6]} 45... Rd8 {[%clk
0:00:30]} 46. Nf4 {[%clk 0:00:05.7]} 46... Rd2 {[%clk 0:00:31]} 47. Rb1 {[%clk
0:00:06.2]} 47... Bc5 {[%clk 0:00:30.6]} 48. Nh3 {[%clk 0:00:06]} 48... Rd3
{[%clk 0:00:27]} 49. Kg2 {[%clk 0:00:06.6]} 49... Rd2 {[%clk 0:00:26.7]} 50. Kf3
{[%clk 0:00:05.7]} 50... e5 {[%clk 0:00:25.5]} 51. Kg2 {[%clk 0:00:05.9]} 51...
e4 {[%clk 0:00:26.3]} 52. Kf1 {[%clk 0:00:07.2]} 52... Ke5 {[%clk 0:00:25.2]}
53. Re1 {[%clk 0:00:06.8]} 53... Kd4 {[%clk 0:00:21.8]} 54. Bxa4 {[%clk
0:00:07.6]} 54... bxa4 {[%clk 0:00:22.7]} 55. Re2 {[%clk 0:00:07.7]} 55... Rxe2
{[%clk 0:00:22.2]} 56. Kxe2 {[%clk 0:00:09.6]} 56... Kc3 {[%clk 0:00:24.1]} 57.
Ng5 {[%clk 0:00:10.9]} 57... f5 {[%clk 0:00:23.7]} 58. Ne6 {[%clk 0:00:12.2]}
58... Bb6 {[%clk 0:00:24.7]} 59. Nf4 {[%clk 0:00:13.1]} 59... Kb2 {[%clk
0:00:25.8]} 60. Nxg6 {[%clk 0:00:14.5]} 60... Kxa2 {[%clk 0:00:27]} 61. Ne7
{[%clk 0:00:16.4]} 61... Kb3 {[%clk 0:00:27.6]} 62. Nd5 {[%clk 0:00:12.8]} 62...
Bd4 {[%clk 0:00:28]} 0-1

[Event "*** MasterClass Titled Tuesday Blitz"]
[Site "Chess.com"]
[Date "2017.10.03"]
[Round "1"]
[White "DrVelja"]
[Black "Mistheoretical"]
[Result "1-0"]
[WhiteElo "2508"]
[BlackElo "2196"]
[TimeControl "180+2"]
[EndTime "13:10:50 PDT"]
[Termination "DrVelja won on time"]

1. e4 {[%clk 0:03:00.6]} 1... e6 {[%clk 0:03:00.7]} 2. d4 {[%clk 0:02:58.6]}
2... d5 {[%clk 0:03:01.7]} 3. Nc3 {[%clk 0:03:00.2]} 3... Bb4 {[%clk 0:03:02.3]}
4. Ne2 {[%clk 0:02:59.9]} 4... Nf6 {[%clk 0:03:02.8]} 5. e5 {[%clk 0:02:59.6]}
5... Nfd7 {[%clk 0:03:03.5]} 6. a3 {[%clk 0:02:59.5]} 6... Be7 {[%clk
0:03:02.8]} 7. f4 {[%clk 0:02:54.9]} 7... c5 {[%clk 0:02:56.1]} 8. Be3 {[%clk
0:02:56]} 8... Nc6 {[%clk 0:02:54.2]} 9. Qd2 {[%clk 0:02:53.6]} 9... a6 {[%clk
0:02:32.2]} 10. dxc5 {[%clk 0:02:52.2]} 10... Bxc5 {[%clk 0:02:21.3]} 11. Bxc5
{[%clk 0:02:52]} 11... Nxc5 {[%clk 0:02:23.2]} 12. O-O-O {[%clk 0:02:44.1]}
12... b5 {[%clk 0:02:03.9]} 13. Nd4 {[%clk 0:02:44.2]} 13... Bb7 {[%clk
0:01:27]} 14. Nxc6 {[%clk 0:02:37.6]} 14... Bxc6 {[%clk 0:01:28.9]} 15. Qd4
{[%clk 0:02:37.7]} 15... Nd7 {[%clk 0:01:08.6]} 16. Bd3 {[%clk 0:02:02.7]} 16...
g6 {[%clk 0:01:07.2]} 17. g4 {[%clk 0:01:58.8]} 17... h5 {[%clk 0:01:00]} 18. h3
{[%clk 0:01:41]} 18... Qb6 {[%clk 0:00:52.6]} 19. Ne2 {[%clk 0:01:39.9]} 19...
Qxd4 {[%clk 0:00:45.8]} 20. Nxd4 {[%clk 0:01:40.7]} 20... Bb7 {[%clk 0:00:47.4]}
21. Kd2 {[%clk 0:01:36.4]} 21... O-O-O {[%clk 0:00:31.3]} 22. Be2 {[%clk
0:01:18.8]} 22... Nc5 {[%clk 0:00:26.9]} 23. Ke3 {[%clk 0:01:16]} 23... Ne4
{[%clk 0:00:23.9]} 24. Rdg1 {[%clk 0:01:15.9]} 24... hxg4 {[%clk 0:00:18]} 25.
hxg4 {[%clk 0:01:16.7]} 25... Kd7 {[%clk 0:00:19]} 26. Bf3 {[%clk 0:01:14.8]}
26... Nc5 {[%clk 0:00:18.2]} 27. f5 {[%clk 0:00:29.7]} 27... Rc8 {[%clk
0:00:11.2]} 28. f6 {[%clk 0:00:16.2]} 28... Kc7 {[%clk 0:00:06.6]} 29. g5 {[%clk
0:00:16.4]} 29... Kb6 {[%clk 0:00:06.2]} 30. Rh6 {[%clk 0:00:17.3]} 30... Rxh6
{[%clk 0:00:06]} 31. gxh6 {[%clk 0:00:18.2]} 31... Rh8 {[%clk 0:00:07.9]} 32.
Rh1 {[%clk 0:00:19.4]} 32... Nd7 {[%clk 0:00:08.2]} 33. Kf4 {[%clk 0:00:15.1]}
33... g5+ {[%clk 0:00:09.7]} 34. Kxg5 {[%clk 0:00:16.5]} 34... Nxe5 {[%clk
0:00:11.4]} 35. Bg2 {[%clk 0:00:15.4]} 35... Kc5 {[%clk 0:00:11.4]} 36. Kf4
{[%clk 0:00:13.3]} 36... Ng6+ {[%clk 0:00:09.7]} 37. Ke3 {[%clk 0:00:13.8]}
37... e5 {[%clk 0:00:09.7]} 38. Nf5 {[%clk 0:00:14.4]} 38... d4+ {[%clk
0:00:10.7]} 39. Kf2 {[%clk 0:00:15.2]} 39... Bxg2 {[%clk 0:00:10.4]} 40. Kxg2
{[%clk 0:00:17.1]} 40... Kd5 {[%clk 0:00:10.9]} 41. h7 {[%clk 0:00:14.5]} 41...
Ke6 {[%clk 0:00:10.9]} 42. Ne7 {[%clk 0:00:03.9]} 42... Nxe7 {[%clk 0:00:08.5]}
43. fxe7 {[%clk 0:00:05.8]} 43... Kxe7 {[%clk 0:00:10.1]} 44. Kf3 {[%clk
0:00:07.3]} 44... Ke6 {[%clk 0:00:08.6]} 45. Rh6+ {[%clk 0:00:07]} 45... f6
{[%clk 0:00:10]} 46. Ke4 {[%clk 0:00:08.5]} 46... a5 {[%clk 0:00:11]} 47. b3
{[%clk 0:00:09.1]} 47... a4 {[%clk 0:00:08.7]} 48. b4 {[%clk 0:00:09.5]} 48...
Kf7 {[%clk 0:00:04.7]} 49. Kf5 {[%clk 0:00:11]} 49... Kg7 {[%clk 0:00:06]} 50.
Rxf6 {[%clk 0:00:12.3]} 50... Rxh7 {[%clk 0:00:05.8]} 51. Kxe5 {[%clk
0:00:07.4]} 51... Rh3 {[%clk 0:00:04.9]} 52. Rb6 {[%clk 0:00:06.9]} 52... d3
{[%clk 0:00:05.2]} 53. cxd3 {[%clk 0:00:07.6]} 53... Rxd3 {[%clk 0:00:07.1]} 54.
Rxb5 {[%clk 0:00:08.1]} 54... Rxa3 {[%clk 0:00:08.6]} 55. Ra5 {[%clk 0:00:09.3]}
55... Kf7 {[%clk 0:00:07.3]} 56. Kd6 {[%clk 0:00:09.7]} 56... Kf6 {[%clk
0:00:07.7]} 57. b5 {[%clk 0:00:10.7]} 57... Ra1 {[%clk 0:00:07.5]} 58. b6 {[%clk
0:00:11.3]} 58... Rb1 {[%clk 0:00:04.9]} 59. Kc7 {[%clk 0:00:11.7]} 59... Rc1+
{[%clk 0:00:04.1]} 60. Kb8 {[%clk 0:00:12.5]} 60... Rc4 {[%clk 0:00:05.1]} 61.
b7 {[%clk 0:00:12.5]} 61... Rb4 {[%clk 0:00:05.3]} 62. Ka7 {[%clk 0:00:12.8]}
1-0

[Event "*** MasterClass Titled Tuesday Blitz"]
[Site "Chess.com"]
[Date "2017.10.03"]
[Round "1"]
[White "OparinGrigoriy"]
[Black "LawrenceTrent"]
[Result "1-0"]
[WhiteElo "2659"]
[BlackElo "2382"]
[TimeControl "180+2"]
[EndTime "13:11:28 PDT"]
[Termination "OparinGrigoriy won on time"]

1. e4 {[%clk 0:02:58.1]} 1... e5 {[%clk 0:02:59]} 2. Nf3 {[%clk 0:02:59]} 2...
Nc6 {[%clk 0:02:59.8]} 3. Bc4 {[%clk 0:03:00]} 3... Nf6 {[%clk 0:02:58.5]} 4. d3
{[%clk 0:03:00.4]} 4... h6 {[%clk 0:02:57.8]} 5. a3 {[%clk 0:02:54.1]} 5... d6
{[%clk 0:02:57.7]} 6. Nc3 {[%clk 0:02:53.3]} 6... g6 {[%clk 0:02:57.1]} 7. h3
{[%clk 0:02:46.4]} 7... Bg7 {[%clk 0:02:51.5]} 8. Be3 {[%clk 0:02:47.8]} 8...
O-O {[%clk 0:02:50.2]} 9. Qd2 {[%clk 0:02:49]} 9... Kh7 {[%clk 0:02:34.6]} 10.
g4 {[%clk 0:02:50.1]} 10... Ng8 {[%clk 0:02:35.8]} 11. O-O-O {[%clk 0:02:45.5]}
11... Nd4 {[%clk 0:02:33.1]} 12. Bxd4 {[%clk 0:02:43]} 12... exd4 {[%clk
0:02:32.1]} 13. Ne2 {[%clk 0:02:44.9]} 13... a6 {[%clk 0:02:15]} 14. Nfxd4
{[%clk 0:02:11.7]} 14... c5 {[%clk 0:02:13.9]} 15. Nb3 {[%clk 0:02:12.4]} 15...
Ne7 {[%clk 0:02:05.2]} 16. Nf4 {[%clk 0:02:07.3]} 16... Rb8 {[%clk 0:01:49]} 17.
Kb1 {[%clk 0:02:04.2]} 17... b5 {[%clk 0:01:47.3]} 18. Bd5 {[%clk 0:02:05.8]}
18... Qc7 {[%clk 0:01:28]} 19. Nc1 {[%clk 0:01:57.3]} 19... a5 {[%clk
0:01:24.6]} 20. Ba2 {[%clk 0:01:34.8]} 20... a4 {[%clk 0:01:24.5]} 21. Nd5
{[%clk 0:01:24]} 21... Nxd5 {[%clk 0:01:24.2]} 22. Bxd5 {[%clk 0:01:25.9]} 22...
b4 {[%clk 0:01:24]} 23. axb4 {[%clk 0:01:27.2]} 23... Rxb4 {[%clk 0:01:24.8]}
24. c3 {[%clk 0:01:27.5]} 24... Rb6 {[%clk 0:01:23.5]} 25. f4 {[%clk 0:01:23.6]}
25... Ba6 {[%clk 0:01:12]} 26. Rh2 {[%clk 0:00:55.8]} 26... Rfb8 {[%clk
0:01:12.1]} 27. Qe1 {[%clk 0:00:57]} 27... Bb7 {[%clk 0:01:03]} 28. Bc4 {[%clk
0:00:53.4]} 28... Bc6 {[%clk 0:01:03.8]} 29. Ka2 {[%clk 0:00:38.6]} 29... Qb7
{[%clk 0:01:03.8]} 30. Rdd2 {[%clk 0:00:39.9]} 30... a3 {[%clk 0:00:58.7]} 31.
b3 {[%clk 0:00:38.3]} 31... Bxc3 {[%clk 0:00:59]} 32. Qd1 {[%clk 0:00:36.5]}
32... Bxd2 {[%clk 0:00:53.7]} 33. Rxd2 {[%clk 0:00:38.4]} 33... Qe7 {[%clk
0:00:54.4]} 34. f5 {[%clk 0:00:36.1]} 34... Bb5 {[%clk 0:00:50.7]} 35. Qc2
{[%clk 0:00:29]} 35... Bxc4 {[%clk 0:00:50.5]} 36. Qxc4 {[%clk 0:00:30.9]} 36...
Rb4 {[%clk 0:00:51.7]} 37. Qc3 {[%clk 0:00:31.9]} 37... Qe5 {[%clk 0:00:41.7]}
38. Qxe5 {[%clk 0:00:32.1]} 38... dxe5 {[%clk 0:00:43.6]} 39. Kxa3 {[%clk
0:00:31]} 39... Kg7 {[%clk 0:00:42.5]} 40. Rc2 {[%clk 0:00:29.6]} 40... R4b5
{[%clk 0:00:42.1]} 41. Kb2 {[%clk 0:00:30.4]} 41... Kf6 {[%clk 0:00:42.4]} 42.
h4 {[%clk 0:00:28.2]} 42... gxf5 {[%clk 0:00:41.4]} 43. gxf5 {[%clk 0:00:30.1]}
43... Rg8 {[%clk 0:00:40.2]} 44. Na2 {[%clk 0:00:31.5]} 44... Rg3 {[%clk
0:00:38.4]} 45. Nc3 {[%clk 0:00:32.6]} 45... Rb7 {[%clk 0:00:39.2]} 46. Nd5+
{[%clk 0:00:33.5]} 46... Kg7 {[%clk 0:00:39.6]} 47. Kc3 {[%clk 0:00:25.7]} 47...
h5 {[%clk 0:00:35]} 48. Ra2 {[%clk 0:00:18.7]} 48... Rg4 {[%clk 0:00:31.4]} 49.
Kc4 {[%clk 0:00:15.9]} 49... Rxh4 {[%clk 0:00:31]} 50. f6+ {[%clk 0:00:16.8]}
50... Kg6 {[%clk 0:00:27.2]} 51. Rg2+ {[%clk 0:00:15.9]} 51... Rg4 {[%clk
0:00:28]} 52. Rh2 {[%clk 0:00:15.3]} 52... Kg5 {[%clk 0:00:28.2]} 53. Ne7 {[%clk
0:00:14.7]} 53... h4 {[%clk 0:00:28.5]} 54. Nf5 {[%clk 0:00:16.1]} 54... Rb8
{[%clk 0:00:25.8]} 55. Rh3 {[%clk 0:00:16.5]} 55... Rb6 {[%clk 0:00:21.3]} 56.
Kxc5 {[%clk 0:00:17.3]} 56... Rxb3 {[%clk 0:00:21.7]} 57. Kd6 {[%clk 0:00:18.8]}
57... Rb8 {[%clk 0:00:19.4]} 58. Kxe5 {[%clk 0:00:19.6]} 58... Rh8 {[%clk
0:00:20.7]} 59. d4 {[%clk 0:00:17.8]} 59... Re8+ {[%clk 0:00:21.9]} 60. Ne7
{[%clk 0:00:19.2]} 60... Rg3 {[%clk 0:00:23.1]} 61. Rh1 {[%clk 0:00:20.5]} 61...
h3 {[%clk 0:00:23.5]} 62. d5 {[%clk 0:00:22.1]} 62... Kg4 {[%clk 0:00:23.1]} 63.
d6 {[%clk 0:00:22.9]} 63... Rg2 {[%clk 0:00:23]} 64. d7 {[%clk 0:00:21]} 64...
Rd8 {[%clk 0:00:22.4]} 65. Kd6 {[%clk 0:00:22.5]} 65... Rd2+ {[%clk 0:00:22.3]}
66. Nd5 {[%clk 0:00:24]} 66... h2 {[%clk 0:00:12.7]} 67. Ke7 {[%clk 0:00:24.6]}
67... Rxd7+ {[%clk 0:00:12.7]} 68. Kxd7 {[%clk 0:00:25.9]} 68... Kf3 {[%clk
0:00:14.3]} 69. Ke7 {[%clk 0:00:25]} 69... Kg2 {[%clk 0:00:13.9]} 70. Rxh2+
{[%clk 0:00:23.4]} 70... Kxh2 {[%clk 0:00:15.8]} 71. Kxf7 {[%clk 0:00:25]} 71...
Rd4 {[%clk 0:00:17]} 72. e5 {[%clk 0:00:23.7]} 72... Rxd5 {[%clk 0:00:17.4]} 73.
e6 {[%clk 0:00:25.3]} 73... Kg3 {[%clk 0:00:18.6]} 74. e7 {[%clk 0:00:26.8]} 1-0